Cogmind - Beta 14 @@@ ROGUE MODE // 2024.10.13 @ 01:16:11 Player: Syanka Result: Destroyed by G-67 Veteran with Field Laser Performance ------------- Evolutions (6) 3000 Regions Visited (25) 5000 Robots Destroyed (293) 1465 Value Destroyed (11921) 11921 Prototype IDs (61) 1220 Alien Tech Used (1) 200 Bonus (4926) 4926 TOTAL SCORE: 27732 Bonus ------- High Alert Combat Kills 2208 Follower Combat Kills 2283 Network Hubs Disabled 400 Aligned with FarCom 300 Met Data Miner 300 Met Imprinter 300 Built Enhanced Grunts 300 A7 Reached Mainframe 300 Met R17 at Cetus 500 Friendly Fire -1965 Cogmind --------- Core Integrity 0/1150 Matter 62/300 Energy 93/100 System Corruption 22% Temperature Cool (21) Movement Flying (35) Location -4/Factory Parts ------- > --- POWER (2) -------- (None) > --- PROPULSION (6) --- Cooled Cesium-ion Thruster > --- UTILITY (9) ------ (None) > --- WEAPON (3) ------- (None) > --- INVENTORY (5) ---- Combat Drone Bay (0/2) Firepult Peak State ------------ > --- POWER ------------ Quantum Reactor Quantum Reactor > --- PROPULSION ------- Centrium Heavy Treads Centrium Heavy Treads > --- UTILITY ---------- Improved Cooling System Huge Storage Unit Weapon Mount Core Analyzer Experimental Phase Shifter Centrium Medium Armor Plating Centrium Medium Armor Plating Advanced Shield Generator Improved Dynamic Insulation System > --- WEAPON ----------- Advanced Variable Charge Gun Advanced Variable Charge Gun Advanced KE Penetrator > --- INVENTORY -------- Quantum Reactor Centrium Heavy Treads Experimental Heat Sink Transmission Jammer Improved Medium Armor Plating Layered Heavy Armor Plating Centrium Medium Armor Plating Improved Remote Force Field Improved Hacking Suite Improved Hacking Suite Improved Hacking Suite Quantum Rifle Firepult Advanced KE Penetrator Antimatter Cannon Antimatter Cannon Heavy Missile Launcher Heavy Missile Launcher Improved Plasma Cutter Power Maul [Rating: 147] Favorites ----------- Power Antimatter Reactor Engine Angular Momentum Engine Power Core Light Nuclear Core Reactor Antimatter Reactor Propulsion Heavy Treads Treads Heavy Treads Leg Enhanced Flexi-carbon Leg Wheel Wheel Hover Unit Cooled Airjet Flight Unit Cooled VTOL Module Utility Improved Cooling System Device Improved Cooling System Storage Large Storage Unit Processor Core Analyzer Hackware Advanced System Shield Protection Layered Medium Armor Plating Weapon Force Rifle Energy Gun Force Rifle Energy Cannon Cooled Particle Cannon Ballistic Gun Advanced KE Penetrator Ballistic Cannon Light Cannon Launcher Heavy Missile Launcher Special Weapon Mining Laser Impact Weapon Heavy Mace Slashing Weapon Axe Piercing Weapon CR-A16's Pointy Stick Special Melee Weapon Datajack Build | -11 -10 -10 -10 -9 -8 -7 -7 -7 -7 -7 -7 -6 -6 -6 -6 -6 -6 -6 -5 -5 -5 -5 -5 -5 -4 ------- Run | Yrd Mat Min Exi Min Mat Fac Was Fac Low Low Dat Pro Fac Was Fac Low Low Zio Pro Fac Ext Cet Arc Hub Fac Slots Evolved 12 | . . . . . 4 2 . . . . . . 2 . . . . . . 2 . . . . 2 Power 1 | . . . . . . . . . . . . . 1 . . . . . . . . . . . . Propulsion 4 | . . . . . 1 1 . . . . . . . . . . . . . . . . . . 2 Utility 7 | . . . . . 3 1 . . . . . . 1 . . . . . . 2 . . . . . Weapon . | . . . . . . . . . . . . . . . . . . . . . . . . . . Parts Attached 411 | 8 19 2 4 4 46 56 14 5 6 . 20 11 16 7 9 2 6 19 22 30 34 20 3 35 13 Power 26 | 1 2 . . 1 5 3 . 1 . . 1 . 1 1 . . . . 2 . 2 5 . 1 . Engine 13 | 1 1 . . 1 3 1 . 1 . . 1 . 1 . . . . . 1 . 2 . . . . Core 6 | . 1 . . . 2 2 . . . . . . . . . . . . . . . . . 1 . Reactor 7 | . . . . . . . . . . . . . . 1 . . . . 1 . . 5 . . . Propulsion 61 | 3 7 . . 1 11 14 4 . . . 4 2 2 1 1 . . . 2 2 2 2 . 2 1 Treads 34 | . 4 . . 1 6 2 4 . . . 3 1 1 1 1 . . . 2 2 2 2 . 2 . Leg 2 | . . . . . . . . . . . 1 1 . . . . . . . . . . . . . Wheel 12 | 3 3 . . . 3 2 . . . . . . 1 . . . . . . . . . . . . Hover 8 | . . . . . 2 6 . . . . . . . . . . . . . . . . . . . Flight 5 | . . . . . . 4 . . . . . . . . . . . . . . . . . . 1 Utility 157 | 2 2 . 1 . 12 19 6 3 4 . 8 4 4 1 8 . 2 11 11 16 15 4 2 18 4 Device 89 | 1 1 . . . 5 10 1 1 4 . 5 2 . . 6 . 1 6 7 10 8 1 2 15 3 Storage 12 | 1 1 . 1 . . 4 . 1 . . 1 . . . 1 . . . . 1 . . . . 1 Processor 9 | . . . . . 1 2 . . . . . . 3 . . . . . 1 1 1 . . . . Hackware 6 | . . . . . . 2 . . . . . . . . 1 . . . . 3 . . . . . Protection 41 | . . . . . 6 1 5 1 . . 2 2 1 1 . . 1 5 3 1 6 3 . 3 . Artifact . | . . . . . . . . . . . . . . . . . . . . . . . . . . Weapon 167 | 2 8 2 3 2 18 20 4 1 2 . 7 5 9 4 . 2 4 8 7 12 15 9 1 14 8 Energy Gun 64 | 1 5 1 1 2 11 4 1 . 1 . 2 1 3 2 . . 1 1 1 4 10 4 1 4 3 Energy Cannon 46 | . . . 1 . . 4 2 1 1 . 5 2 5 2 . 1 1 5 3 4 4 2 . 2 1 Ballistic Gun 16 | 1 . . . . 4 3 1 . . . . . . . . . . . . . . 2 . 2 3 Ballistic Cannon 7 | . . . 1 . . . . . . . . . . . . . . . . 2 1 . . 3 . Launcher 17 | . . 1 . . 3 3 . . . . . 2 . . . 1 1 . 2 . . . . 3 1 Special Weapon 6 | . 3 . . . . . . . . . . . . . . . . . 1 1 . 1 . . . Impact Weapon 7 | . . . . . . 5 . . . . . . 1 . . . . . . 1 . . . . . Slashing Weapon 2 | . . . . . . 1 . . . . . . . . . . . 1 . . . . . . . Piercing Weapon 1 | . . . . . . . . . . . . . . . . . . 1 . . . . . . . Special Melee Weapon 1 | . . . . . . . . . . . . . . . . . 1 . . . . . . . . Unidentified Prototypes 26 | . . . . . 8 4 . . 1 . 3 . 2 . . . . . . 1 . 4 . 2 1 Corrupted Parts 4 | . . . . . . 1 . . . . . . . . . . . . . . . . . 3 . System Corruption 30 | . . . . . . 8 . . . . . . . . . . . . . . . . . 22 . Parts Lost 60 | . 1 . . . 2 13 . . . . 3 3 1 . . . . . 1 . . . . 12 24 Power 7 | . 1 . . . 1 2 . . . . 1 . . . . . . . . . . . . . 2 Propulsion 11 | . . . . . . 4 . . . . 1 1 . . . . . . . . . . . 2 3 Utility 25 | . . . . . 1 4 . . . . 1 1 1 . . . . . 1 . . . . 8 8 Weapon 17 | . . . . . . 3 . . . . . 1 . . . . . . . . . . . 2 11 Highest Loss Streak 23 | . 1 . . . 1 7 . . . . 2 3 1 . . . . . 1 . . . . 4 23 To Critical Strikes . | . . . . . . . . . . . . . . . . . . . . . . . . . . Average Slot Usage (%) 81 | . 99 100 87 100 93 79 63 59 60 64 65 91 91 80 68 68 68 82 86 87 84 82 85 83 54 Engine 5 | . 8 . . 4 7 2 . 4 7 7 7 7 11 9 6 6 6 6 6 5 7 1 . . . Core 1 | . 5 14 14 9 1 3 7 2 . . . . . . . . . . . . . . . . 3 Reactor 3 | . . . . . . . . . . . . . . 2 6 6 6 6 6 5 2 9 11 10 3 Treads 12 | . 19 14 14 17 21 3 12 15 14 14 14 20 12 9 12 12 12 12 11 11 11 11 11 10 7 Wheel 1 | . 8 14 14 10 5 1 . . . . . . 2 6 . . . . . . . . . . . Hover 1 | . . . . . . 17 . . . . . . . . . . . . . . . . . . . Device 16 | . 14 14 14 14 15 10 7 7 6 7 11 21 12 12 12 12 11 21 21 25 19 22 18 22 18 Storage 6 | . 14 14 14 14 9 5 . 1 7 7 9 8 6 6 6 6 6 6 6 5 5 5 5 5 7 Processor 2 | . . . . . . 7 3 . . . . . 12 11 . . . . 2 5 5 5 5 5 3 Hackware 1 | . . . . . . 5 . . . . . . . . . . . . . 1 5 5 5 2 . Protection 8 | . . . . . 14 2 9 10 7 7 8 11 10 5 6 6 6 10 12 11 13 11 11 9 . Energy Gun 9 | . 18 27 7 19 15 2 1 . . 7 . . 7 7 12 12 12 7 12 10 8 2 4 7 6 Energy Cannon 5 | . . . . . . 1 7 14 14 14 12 20 9 7 6 5 5 10 5 4 3 5 5 2 . Ballistic Gun 1 | . 3 . . . 2 1 4 . . . . . . . . . . . . . . 2 5 4 . Peak Build Rating 147 | 7 13 13 30 19 44 55 72 74 79 80 81 75 76 91 94 93 93 93 89 105 110 139 140 147 106 Average Rating 75 | 5 10 13 13 17 38 40 57 71 74 79 71 70 71 84 93 93 92 86 87 99 100 124 136 138 78 On Entrance 68 | . 7 13 13 15 19 44 38 72 74 79 80 75 58 76 90 93 93 93 86 87 105 104 136 140 99 Naked Turns 80 | . . . . . . . . . . . . . . . . . . . . . . . . . 80 Heaviest Build 180 | 13 31 32 52 56 76 62 66 90 94 94 90 67 74 114 115 115 115 115 100 180 166 169 169 174 153 Greatest Support 160 | 26 40 10 10 40 62 32 140 140 140 140 140 118 48 28 140 140 140 140 140 140 140 160 160 160 103 Greatest Overweight (x) 54 | 3 3 3 5 5 7 4 . . . . . 1 2 4 . . . . 1 1 1 1 54 1 3 Average Overweight (x) . | . . 3 2 4 1 . . . . . . . 1 3 . . . . . . . . 5 . . Largest Inventory Capacity 25 | 8 15 15 20 20 20 20 5 15 15 15 15 15 15 15 15 15 15 15 15 25 25 25 25 25 25 Average Capacity 16 | 7 11 15 16 20 20 11 5 7 15 15 15 15 15 15 15 15 15 15 15 18 25 25 25 25 20 Most Carried 25 | 7 14 15 16 20 20 20 5 15 15 15 15 15 15 15 15 15 15 15 15 25 25 25 25 25 23 Average Carried 16 | 3 10 14 15 18 19 9 5 6 14 15 14 14 14 14 14 15 15 14 14 16 24 24 24 23 18 Final Capacity 25 | 8 15 15 20 20 20 5 5 15 15 15 15 15 15 15 15 15 15 15 15 25 25 25 25 25 5 Final Carried 25 | 7 14 15 16 20 20 5 5 15 15 15 15 13 15 15 15 15 15 15 15 21 25 25 25 23 4 Class Distribution -------------------- 45% | Scavenger-Tank 24% | Scavenger-Mutant 15% | Mutant 6% | Scavenger-Gunner 4% | Scavenger-Skirmisher Dominant Class ---------------- Mutant | -10/Materials Scavenger-Mutant | -10/Mines Scavenger-Mutant | -10/Exiles Mutant | -9/Mines Mutant | -8/Materials Mutant | -7/Factory Scavenger-Mutant | -7/Waste Scavenger-Mutant | -7/Factory Scavenger-Mutant | -7/Lower Caves Scavenger-Tank | -7/Lower Caves Scavenger-Mutant | -7/Data Miner Scavenger-Tank | -6/Proximity Caves Scavenger-Tank | -6/Factory Scavenger-Skirmisher | -6/Waste Scavenger-Skirmisher | -6/Factory Scavenger-Tank | -6/Lower Caves Scavenger-Tank | -6/Lower Caves Scavenger-Tank | -6/Zion Scavenger-Tank | -5/Proximity Caves Scavenger-Tank | -5/Factory Scavenger-Tank | -5/Extension Scavenger-Tank | -5/Cetus Scavenger-Gunner | -5/Archives Scavenger-Tank | -5/Hub_04(d) Scavenger-Gunner | -4/Factory Resources | -11 -10 -10 -10 -9 -8 -7 -7 -7 -7 -7 -7 -6 -6 -6 -6 -6 -6 -6 -5 -5 -5 -5 -5 -5 -4 ----------- Run | Yrd Mat Min Exi Min Mat Fac Was Fac Low Low Dat Pro Fac Was Fac Low Low Zio Pro Fac Ext Cet Arc Hub Fac Matter Collected 6465 | 328 217 61 49 56 605 753 406 139 138 84 205 210 120 151 66 44 140 190 313 392 424 331 167 795 81 Remotely . | . . . . . . . . . . . . . . . . . . . . . . . . . . Salvage Created 14916 | 156 356 7 . 181 1322 1485 999 529 126 88 281 210 297 1303 784 396 98 . 569 1187 883 291 407 2279 682 Parts 645 | 12 17 4 . 9 79 61 18 21 7 9 10 8 14 13 33 20 3 . 23 57 52 14 25 94 42 Haulers Intercepted 11 | . 1 . . . 2 3 . 2 . . . . . . 1 . . . 1 . . . . 1 . Recyclers Shooed 11 | . . 2 . . . 1 . 3 . . . . . . 1 . . . . 4 . . . . . Parts Field Recycled . | . . . . . . . . . . . . . . . . . . . . . . . . . . Retrieved Matter . | . . . . . . . . . . . . . . . . . . . . . . . . . . Parts Self-Destructed 68 | . . . . . . . . . 3 9 . 7 . . . 20 1 1 27 . . . . . . Prevented 8 | . . . . . . . . . . . . . . . . . . . 8 . . . . . . Kills | -11 -10 -10 -10 -9 -8 -7 -7 -7 -7 -7 -7 -6 -6 -6 -6 -6 -6 -6 -5 -5 -5 -5 -5 -5 -4 ------- Run | Yrd Mat Min Exi Min Mat Fac Was Fac Low Low Dat Pro Fac Was Fac Low Low Zio Pro Fac Ext Cet Arc Hub Fac Combat Hostiles Destroyed 206 | . 8 3 . 3 28 20 . 1 1 4 4 9 3 5 10 8 5 . 10 13 12 4 1 41 13 Melee 5 | . . . . . . 5 . . . . . . . . . . . . . . . . . . . Guns 98 | . 8 . . 3 20 2 . . . 2 . . 1 1 5 4 1 . 3 6 9 2 . 27 4 Cannons 36 | . . . . . . . . 1 1 2 3 3 1 1 3 1 . . . 6 3 2 1 6 2 AOE 48 | . . 3 . . 7 7 . . . . . 6 . . . 2 4 . 7 . . . . 6 6 Classes Destroyed 21 | 2 5 . . . 4 4 1 . 1 . . . . 1 . 1 . . . . . . . 2 . Worker 14 | . . . . . . 3 . 4 . . . . . . . . . . . 2 1 . . 4 . Builder 11 | . . . . . 1 3 . 1 . . . . 1 . . . . . . 1 1 . . 3 . Tunneler 6 | 4 . . . . . 2 . . . . . . . . . . . . . . . . . . . Hauler 11 | . 1 . . . 2 3 . 2 . . . . . . 1 . . . 1 . . . . 1 . Recycler 14 | 1 1 . . . . 4 . 4 . . . . 1 . . . . . . 2 . . . 1 . Mechanic 3 | . . . . . 1 1 . . . . . . . . . . . . . . . . . 1 . Operator 12 | . 1 . . . 1 . . . . . . . . . . . . . . . . . 9 . 1 Watcher 10 | . 1 . . . 4 3 . . . . . . . . . . . . . 1 . . . 1 . Swarmer 46 | . 3 3 . . 8 3 . . . 4 . 7 . . . 3 4 . 4 . 3 . . 4 . Grunt 73 | . 5 . . 3 14 11 . . . . . 1 1 . 5 3 . . 4 . 2 . . 16 8 Brawler 3 | . . . . . . 1 . . . . . . . . . . . . . . . . . 2 . Duelist 4 | . . . . . . 1 . . . . . . . . . 1 . . . . . . . 1 1 Protector 3 | . . . . . . . . . . . . . . . . . . . . . . . . 3 . Researcher 1 | . . . . . . . . . 1 . . . . . . . . . . . . . . . . Sentry 26 | . . . . . 5 2 . . 1 . . 1 1 . 3 . . . 1 1 5 . 1 4 1 Specialist 2 | . . . . . . . . . . . . . . . . . . . . . . . . 2 . Hunter 6 | . . . . . 1 . . . . . . . . . . . 1 . . 1 1 . . 2 . Programmer 24 | . . . . . . 2 . 1 . . . . 1 . 2 . . . . 11 . . . 4 3 Behemoth 3 | . . . . . . . . . . . . . . . . 1 . . 1 . 1 . . . . Compactor 5 | . . . . . . . . . . . . . . 5 . . . . . . . . . . . Cetus Guard 4 | . . . . . . . . . . . . . . . . . . . . . . 4 . . . Enhanced Grunt 5 | . . . . . . . . . . . 4 . . . . . . . 1 . . . . . . Lightning 3 | . . . . . . . . . . . . . . . . . . . . . . . . 3 . Wasp 1 | . . . . . . . 1 . . . . . . . . . . . . . . . . . . Thug 1 | . . . . 1 . . . . . . . . . . . . . . . . . . . . . Martyr 2 | . . . . . . . 2 . . . . . . . . . . . . . . . . . . Best Kill Streak 19 | 4 4 3 . 2 6 6 . 4 1 4 2 4 2 4 5 4 4 . 4 3 3 2 5 19 7 Combat Bots Only 12 | . 4 3 . 2 4 6 . 1 1 4 2 4 2 4 5 4 4 . 4 2 3 2 1 12 7 Max Kills in Single Turn 6 | 1 1 2 . 1 2 3 1 2 1 1 1 3 1 1 2 2 3 . 3 1 2 1 1 4 6 Gunslinging 1 | . . . . . . . . . . . . . . . . . . . . . . . . 1 . Exploded 6 | . . 2 . . 2 3 . . . . . 3 . . . 2 3 . 3 . . . . 4 6 Melee 1 | . . . . . . 1 . . . . . . . . . . . . . . . . . . . Uniques/NPCs Destroyed . | . . . . . . . . . . . . . . . . . . . . . . . . . . Combat | -11 -10 -10 -10 -9 -8 -7 -7 -7 -7 -7 -7 -6 -6 -6 -6 -6 -6 -6 -5 -5 -5 -5 -5 -5 -4 -------- Run | Yrd Mat Min Exi Min Mat Fac Was Fac Low Low Dat Pro Fac Was Fac Low Low Zio Pro Fac Ext Cet Arc Hub Fac Hostile Shots Fired 1311 | . 59 7 . 10 103 176 . 46 18 14 51 29 28 . 52 26 11 . 48 60 40 23 . 346 164 Missed 327 | . 18 4 . 2 21 53 . 15 4 1 4 5 13 . 11 6 5 . 8 13 12 8 . 88 36 Damage Taken 18332 | . 441 25 . 97 1157 1602 . 188 115 303 2104 343 168 19 282 417 95 . 841 708 555 336 33 5372 3131 Core 2191 | . 72 . . 41 70 412 . 5 . . 47 18 15 . 19 . . . 46 30 15 17 . 232 1152 Absorbed by Shields 1602 | . . . . . 116 8 . . . . . . . . . . . . 194 255 188 112 12 717 . Reduced by Siege Mode 867 | . . . . . . . . 1 3 . 199 . . . 8 18 . . 52 45 23 . . 370 148 Ignored by Resistances 276 | . . . . . 50 . . 43 . . . . . . 183 . . . . . . . . . . Regen/Repaired (Parts) 209 | . . . . . 129 5 75 . . . . . . . . . . . . . . . . . . Core Remaining (%) 72 | 100 . . . 54 87 . . . . . . 31 . . . . . . 90 . . . . 70 . Volleys Fired 688 | 16 37 4 . 9 84 57 38 17 18 4 49 10 12 17 20 12 6 1 22 77 24 11 17 97 29 Largest 3 | 2 2 1 . 2 2 2 2 2 2 3 3 3 3 3 3 3 3 1 3 3 3 3 3 3 3 Hottest 330 | 70 115 30 . 130 130 90 111 120 120 135 180 150 260 330 240 240 240 85 240 258 258 258 227 290 250 Shots Fired 1376 | 32 62 4 . 18 158 68 65 30 37 14 84 17 36 23 60 30 10 1 50 143 69 34 52 229 50 Gun 819 | 32 50 . . 17 150 44 29 . . 6 12 . 19 4 40 20 4 . 30 65 46 18 32 169 32 Cannon 499 | . . . . 1 . 19 36 30 37 8 72 13 17 19 20 8 2 1 13 75 23 16 20 51 18 Launcher 43 | . . 4 . . 8 5 . . . . . 4 . . . 2 4 . 7 . . . . 9 . Special 15 | . 12 . . . . . . . . . . . . . . . . . . 3 . . . . . Kinetic 237 | 16 14 . . 1 28 21 19 . . . . . . . . . . . . . . 5 17 88 28 Thermal 1051 | 16 48 . . 17 122 13 40 30 37 14 84 13 34 23 60 28 6 1 43 143 69 24 32 132 22 Explosive 43 | . . 4 . . 8 5 . . . . . 4 . . . 2 4 . 7 . . . . 9 . Electromagnetic 45 | . . . . . . 29 6 . . . . . 2 . . . . . . . . 5 3 . . Robot Hit Streak 48 | 8 10 . . 5 12 7 16 5 12 5 44 11 13 15 9 10 4 . 14 26 43 6 18 48 16 Robot Miss Streak 11 | 3 3 1 . 2 3 11 3 3 2 5 2 2 2 2 2 1 . . 1 2 2 3 4 4 1 Penetration Max 1 | . . . . . . . . . . . . . . . . . . . . . . . . 1 1 Secondary Targets 13 | . 4 . . 1 3 . . . . . . . . . . . . . . . . . . 5 . Max Gunslinging Chain 1 | . 1 . . 1 1 . . . . . . . . . . . . . . . . . . 1 . Shots Hit Robots 911 | 19 38 . . 13 103 79 48 12 14 5 57 8 24 16 39 22 1 . 35 80 46 20 39 159 34 Core Hits 574 | 5 16 4 . 8 59 43 14 11 3 10 45 9 12 11 18 14 7 . 26 31 29 13 23 134 29 Critical Kills 22 | . 1 . . . . 2 1 . . . . . . 1 3 1 . . 2 1 2 1 . 6 1 Critical Parts Destroyed 25 | . . . . . . 7 . . . . . . . . 3 1 . . 2 3 . . 2 6 1 Critical Strikes 70 | 2 5 . . 1 9 11 3 . . . . . . 1 6 2 . . 5 4 2 1 2 13 3 Burn 17 | 2 4 . . 1 9 . . . . . . . . . . . . . . . . . . . 1 Meltdown 5 | . . . . . . . 1 . . . . . . . 2 . . . . . . . . 2 . Destroy 36 | . 1 . . . . 1 1 . . . . . . 1 4 2 . . 5 4 2 1 2 10 2 Blast 1 | . . . . . . . . . . . . . . . . . . . . . . . . 1 . Corrupt 1 | . . . . . . . 1 . . . . . . . . . . . . . . . . . . Smash 8 | . . . . . . 8 . . . . . . . . . . . . . . . . . . . Sever 2 | . . . . . . 2 . . . . . . . . . . . . . . . . . . . Melee Attacks 72 | . . . . . . 66 . . . . . . 6 . . . . . . . . . . . . Impact 60 | . . . . . . 54 . . . . . . 6 . . . . . . . . . . . . Slashing 12 | . . . . . . 12 . . . . . . . . . . . . . . . . . . . Piercing . | . . . . . . . . . . . . . . . . . . . . . . . . . . Sneak Attacks 10 | . . . . . . 10 . . . . . . . . . . . . . . . . . . . Combat Hostiles 3 | . . . . . . 3 . . . . . . . . . . . . . . . . . . . Follow-up Attacks 6 | . . . . . . 6 . . . . . . . . . . . . . . . . . . . Damage Inflicted 33566 | 231 577 259 . 218 2413 3778 1336 762 305 125 1172 709 740 793 1115 785 347 . 1655 2563 1454 616 1194 7747 2672 Guns 13917 | 231 505 . . 200 1959 423 460 . . 72 207 . 349 50 701 387 25 . 584 1582 909 315 683 3404 871 Cannons 8500 | . . . . 18 . 233 876 398 305 53 965 289 382 435 409 131 . . 218 879 470 301 511 1282 345 Explosions 8808 | . . 259 . . 444 1080 . 364 . . . 420 . 308 . 267 322 . 853 . . . . 3040 1451 Melee 2042 | . . . . . . 2042 . . . . . . . . . . . . . . . . . . . Ramming 227 | . . . . . 10 . . . . . . . 9 . 5 . . . . 102 75 . . 21 5 Kinetic 4051 | 119 149 . . 18 270 202 277 . . . . . . . . . . . . . . 77 272 1962 705 Thermal 20737 | 112 428 . . 200 1689 532 909 398 305 125 1172 289 705 793 1110 518 25 . 802 2461 1379 438 874 3511 1962 Explosive 5516 | . . 259 . . 444 615 . 364 . . . 420 . . . 267 322 . 853 . . . . 1972 . Electromagnetic 993 | . . . . . . 387 150 . . . . . 26 . . . . . . . . 101 48 281 . Impact 1737 | . . . . . . 1737 . . . . . . . . . . . . . . . . . . . Slashing 305 | . . . . . . 305 . . . . . . . . . . . . . . . . . . . Piercing . | . . . . . . . . . . . . . . . . . . . . . . . . . . Highest Corruption 41 | . . 1 1 1 . 29 29 29 25 25 25 25 . . . . . . . 11 11 11 11 41 22 Average Corruption 14 | . . 1 1 1 . 26 29 25 25 25 25 25 . . . . . . . 6 11 11 5 10 16 Corruption Purged 11 | . . . . . . . . 4 . . . . . . . . . . . . . . 7 . . Corruption Blocked 11 | . . . . . . . . . . . . . . 11 . . . . . . . . . . . Effects 607 | . . . 1 8 . 48 53 60 46 33 41 29 . . . . . . . 60 91 24 36 67 10 Message Errors 151 | . . . . 4 . 12 13 14 10 10 9 7 . . . . . . . 16 25 5 7 17 2 Matter Fused 144 | . . . . 2 . 8 19 13 13 8 6 11 . . . . . . . 17 20 6 9 11 1 Heat Flow Errors 73 | . . . . 1 . 5 5 8 4 3 8 2 . . . . . . . 7 18 2 3 4 3 Energy Discharges 60 | . . . . . . 3 5 8 6 3 2 4 . . . . . . . 7 5 3 5 9 . Parts Rejected 8 | . . . . . . 1 . . . . 2 . . . . . . . . 2 . . . 2 1 Parts Fused 5 | . . . . . . . . . 2 . . . . . . . . . . 1 . . 1 1 . Data Loss (minor) 70 | . . . . 1 . 6 2 8 7 4 4 2 . . . . . . . 5 11 3 7 9 1 Data Loss (major) 24 | . . . 1 . . 2 1 3 3 . 1 1 . . . . . . . 1 3 3 3 2 . Misfires 21 | . . . . . . 3 1 1 1 3 2 . . . . . . . . 2 3 1 1 3 . Alerts 10 | . . . . . . 3 . . . 1 . 1 . . . . . . . . 4 1 . . . Misdirections 2 | . . . . . . 1 . . . . . . . . . . . . . . . . . . 1 Weapon Failures 39 | . . . . . . 4 7 5 . 1 7 1 . . . . . . . 2 2 . . 9 1 Overload Shots 16 | . . . . . . 7 . 3 1 . 1 1 . . . . . . . . . . . 3 . Effects 1 | . . . . . . . . 1 . . . . . . . . . . . . . . . . . Heat Surge 1 | . . . . . . . . 1 . . . . . . . . . . . . . . . . . Overflow Damage 1223 | . . . . . 37 733 12 30 28 . 1 47 39 . . 11 . . 59 74 . . 31 41 80 Projectiles 240 | . . . . . . 2 12 20 28 . 1 12 39 . . . . . . 63 . . 31 32 . Explosions 336 | . . . . . 37 95 . 10 . . . 35 . . . 11 . . 59 . . . . 9 80 Melee 647 | . . . . . . 636 . . . . . . . . . . . . . 11 . . . . . Knockbacks 17 | . . . . 2 . . . . . . . . . . . . . . . 2 . . . 7 6 Impact 3 | . . . . . . . . . . . . . . . . . . . . 2 . . . 1 . Kinetic 12 | . . . . 1 . . . . . . . . . . . . . . . . . . . 6 5 Secondary 2 | . . . . 1 . . . . . . . . . . . . . . . . . . . . 1 Self-Inflicted Damage 532 | . . . . . 93 . . . . . . 24 . 19 . 9 . . 81 . . . . 211 95 Shots 15 | . . . . . 2 . . . . . . 1 . 3 . 1 . . 2 . . . . 3 3 Rammed 22 | . 2 . . . 1 . . . . . . . 2 . 1 . . . . 8 5 . . 1 2 Targets Rammed 24 | . 2 . . . 1 . . . . . . . 2 . 1 . . . . 10 5 . . 1 2 Kicked . | . . . . . . . . . . . . . . . . . . . . . . . . . . Crushed 2 | . . . . . . . . . . . . . . . . . . . . 2 . . . . . Highest Temperature 509 | 81 117 . . 117 320 199 221 266 262 509 243 194 168 148 252 337 39 . 294 258 351 332 179 443 230 Average Temperature 79 | 30 40 . . 41 55 37 90 101 87 128 86 121 65 64 78 136 26 . 110 74 100 156 30 107 74 Received Heat Transfer 3124 | . 138 . . 57 633 375 . 24 36 . . 24 33 . 87 102 . . 135 6 124 12 . 953 385 Effects 9 | . . . . . . . . . . 1 1 . . . . 2 . . . . 1 . . 4 . Shutdowns 4 | . . . . . . . . . . . . . . . . 2 . . . . 1 . . 1 . Energy Bleed 1 | . . . . . . . . . . 1 . . . . . . . . . . . . . . . Interference 4 | . . . . . . . . . . . 1 . . . . . . . . . . . . 3 . Siege Activations 51 | . . . . . . . . 1 1 1 3 2 . . 7 2 1 . 4 8 9 . . 10 2 Total Turns 787 | . . . . . . . . 32 16 9 130 13 . . 63 27 21 . 42 106 64 . . 205 59 Longest Duration 63 | . . . . . . . . 32 16 9 60 10 . . 18 25 21 . 26 20 17 . . 63 45 Robots Corrupted 10 | . . . . . . 10 . . . . . . . . . . . . . . . . . . . Combat Hostiles 6 | . . . . . . 6 . . . . . . . . . . . . . . . . . . . Parts Fried 11 | . . . . . . 9 . . . . . . . . . . . . . 2 . . . . . Impact Corruptions 25 | . . . . . . 24 . . . . . . . . . . . . . 1 . . . . . Robots Melted 15 | . . . . . 1 . 1 . . . 1 . 1 3 2 1 . . . 1 . . . 3 1 Combat Hostiles 14 | . . . . . 1 . 1 . . . 1 . 1 3 2 1 . . . 1 . . . 2 1 Parts Melted 113 | 1 7 . . . 11 1 3 1 1 . 4 1 2 10 4 5 . . 1 26 6 2 6 20 1 Heat Transferred 34744 | 481 1408 . . 518 3996 548 1295 518 518 134 1987 185 985 2814 1786 842 37 . 1375 3322 2069 651 1255 5993 2027 Parts Sabotaged . | . . . . . . . . . . . . . . . . . . . . . . . . . . Parts Stolen . | . . . . . . . . . . . . . . . . . . . . . . . . . . Parts Stripped . | . . . . . . . . . . . . . . . . . . . . . . . . . . Power Chain Reactions 1 | . . . . . . 1 . . . . . . . . . . . . . . . . . . . Alert | -11 -10 -10 -10 -9 -8 -7 -7 -7 -7 -7 -7 -6 -6 -6 -6 -6 -6 -6 -5 -5 -5 -5 -5 -5 -4 ------- Run | Yrd Mat Min Exi Min Mat Fac Was Fac Low Low Dat Pro Fac Was Fac Low Low Zio Pro Fac Ext Cet Arc Hub Fac Peak Influence 1804 | 25 200 96 . 88 445 630 178 354 . . . . 151 12 175 . . . . 163 246 246 368 1804 1277 Initial 883 | . 16 . . . 27 180 178 . . . . . 25 12 8 . . . . 88 42 102 84 13 883 Average 207 | 11 53 37 . 12 198 332 78 216 . . . . 23 12 53 . . . . 66 76 200 185 866 927 Maximum Alert Level 5 | . 1 . . . 2 2 . 1 . . . . . . . . . . . . 1 1 1 5 4 Low Security (%) 71 | 100 97 100 . 100 54 43 100 45 . . . . 100 100 100 . . . . 100 99 21 68 10 . Level 1 15 | . 2 . . . 37 17 . 54 . . . . . . . . . . . . . 78 31 20 . Level 2 6 | . . . . . 7 39 . . . . . . . . . . . . . . . . . 16 . Level 3 2 | . . . . . . . . . . . . . . . . . . . . . . . . 7 94 Level 4 3 | . . . . . . . . . . . . . . . . . . . . . . . . 42 4 Level 5 . | . . . . . . . . . . . . . . . . . . . . . . . . 1 . High Security . | . . . . . . . . . . . . . . . . . . . . . . . . . . Max Security . | . . . . . . . . . . . . . . . . . . . . . . . . . . Squads Dispatched 60 | . 2 . . . 4 8 . 9 . . . . 4 . 2 . . . . 9 . . . 14 8 Investigation 11 | . 1 . . . 2 3 . 4 . . . . . . . . . . . 1 . . . . . Extermination 14 | . . . . . . 2 . 1 . . . . 1 . 1 . . . . 5 . . . 2 2 Reinforcement 19 | . 1 . . . 2 2 . 1 . . . . 1 . 1 . . . . 2 . . . 7 2 Assault 8 | . . . . . . 1 . . . . . . . . . . . . . 1 . . . 4 2 Garrison 8 | . . . . . . . . 3 . . . . 2 . . . . . . . . . . 1 2 Intercept . | . . . . . . . . . . . . . . . . . . . . . . . . . . Searches Triggered 1 | . . . . . . 1 . . . . . . . . . . . . . . . . . . . Construction Impeded 3 | . . . . . . . . . . . . . . . . . . . . . . . . 3 . Haulers Reinforced 2 | . . . . . . 1 . . . . . . . . 1 . . . . . . . . . . Active Scanning Responses . | . . . . . . . . . . . . . . . . . . . . . . . . . . Cargo Convoy Interrupts 1 | . . . . . . . . . . . . . . . . . . . . 1 . . . . . Stealth | -11 -10 -10 -10 -9 -8 -7 -7 -7 -7 -7 -7 -6 -6 -6 -6 -6 -6 -6 -5 -5 -5 -5 -5 -5 -4 --------- Run | Yrd Mat Min Exi Min Mat Fac Was Fac Low Low Dat Pro Fac Was Fac Low Low Zio Pro Fac Ext Cet Arc Hub Fac Distress Signals 15 | . . . . . 1 1 . 3 . . . . 1 . 1 . . . . . 3 2 . 2 1 Communications Jammed 56 | . . . . . . 38 . . . . . . . . . . . . 1 17 . . . . . Distress Signals 56 | . . . . . . 38 . . . . . . . . . . . . 1 17 . . . . . Times Spotted 349 | . 13 3 . 3 40 44 . 9 1 4 6 9 7 6 14 8 4 . 11 22 18 10 8 64 45 Peak Tracking Total 12 | . 4 3 . 3 5 9 . 3 1 4 2 4 2 2 6 4 4 . 4 3 5 5 2 12 12 Tactical Retreats 23 | . . . . . 1 9 . 1 . . . . 1 . 1 . . . . . 2 . . 2 6 Traps | -11 -10 -10 -10 -9 -8 -7 -7 -7 -7 -7 -7 -6 -6 -6 -6 -6 -6 -6 -5 -5 -5 -5 -5 -5 -4 ------- Run | Yrd Mat Min Exi Min Mat Fac Was Fac Low Low Dat Pro Fac Was Fac Low Low Zio Pro Fac Ext Cet Arc Hub Fac Traps Triggered 15 | . 2 . . . 2 4 . . . 2 . . 1 . . . . . . . 4 . . . . Indirectly . | . . . . . . . . . . . . . . . . . . . . . . . . . . Trap Hack Attempts . | . . . . . . . . . . . . . . . . . . . . . . . . . . Triggered . | . . . . . . . . . . . . . . . . . . . . . . . . . . Disarmed . | . . . . . . . . . . . . . . . . . . . . . . . . . . Reprogrammed . | . . . . . . . . . . . . . . . . . . . . . . . . . . Reused . | . . . . . . . . . . . . . . . . . . . . . . . . . . Traps Extracted . | . . . . . . . . . . . . . . . . . . . . . . . . . . Installed . | . . . . . . . . . . . . . . . . . . . . . . . . . . Triggered 2 | . . . . . . . . . . . . . . . . . 1 . . 1 . . . . . Machines | -11 -10 -10 -10 -9 -8 -7 -7 -7 -7 -7 -7 -6 -6 -6 -6 -6 -6 -6 -5 -5 -5 -5 -5 -5 -4 ---------- Run | Yrd Mat Min Exi Min Mat Fac Was Fac Low Low Dat Pro Fac Was Fac Low Low Zio Pro Fac Ext Cet Arc Hub Fac Machines Disabled 45 | . . . . 2 4 5 . 6 1 . 1 . 2 . . . . . . 1 . 2 3 12 6 Max in Single Turn 5 | . . . . . 1 2 . 3 1 . 1 . 2 . . . . . . 1 . 1 . 5 3 Garrison Access 4 | . . . . . . 2 . 1 . . . . . . . . . . . 1 . . . . . Network Hub 2 | . . . . . . . . . . . . . . . . . . . . . . . . 2 . Machines Repaired . | . . . . . . . . . . . . . . . . . . . . . . . . . . Machines Dismantled 1 | . . . . . . . . . . . . . . . . . . . . . . 1 . . . Machines Sabotaged . | . . . . . . . . . . . . . . . . . . . . . . . . . . Overloaded Fab Kills . | . . . . . . . . . . . . . . . . . . . . . . . . . . Hacking | -11 -10 -10 -10 -9 -8 -7 -7 -7 -7 -7 -7 -6 -6 -6 -6 -6 -6 -6 -5 -5 -5 -5 -5 -5 -4 --------- Run | Yrd Mat Min Exi Min Mat Fac Was Fac Low Low Dat Pro Fac Was Fac Low Low Zio Pro Fac Ext Cet Arc Hub Fac Machines Accessed 57 | . 7 1 2 . 9 8 . 6 . 1 3 . . . 2 . 1 1 . 6 7 1 . 2 . Terminals 36 | . 7 1 . . 7 4 . 2 . 1 . . . . 2 . . . . 2 7 1 . 2 . Fabricators 4 | . . . . . . . . 2 . . . . . . . . . . . 2 . . . . . Repair Stations 4 | . . . . . 1 2 . . . . . . . . . . . . . 1 . . . . . Recycling Units . | . . . . . . . . . . . . . . . . . . . . . . . . . . Scanalyzers 2 | . . . . . 1 . . . . . . . . . . . . . . 1 . . . . . Garrison Access 4 | . . . . . . 2 . 2 . . . . . . . . . . . . . . . . . Total Hacks 148 | . 14 4 2 . 24 17 . 13 . 2 22 . . . 3 . 2 4 . 13 19 1 . 8 . Successful 93 | . 9 1 2 . 14 9 . 4 . 2 22 . . . 1 . 2 4 . 11 8 . . 4 . Failed 54 | . 5 3 . . 10 7 . 9 . . . . . . 2 . . . . 2 11 1 . 4 . Catastrophic 9 | . . 1 . . 1 2 . 2 . . . . . . 1 . . . . . . 1 . 1 . Database Lockouts 1 | . . . . . . 1 . . . . . . . . . . . . . . . . . . . Manual 59 | . 12 4 1 . 19 4 . 2 . . . . . . 3 . . 3 . 2 2 1 . 6 . Terminals 82 | . 14 4 . . 18 8 . 3 . 2 . . . . 3 . . . . 2 19 1 . 8 . Fabricators 13 | . . . . . . . . 7 . . . . . . . . . . . 6 . . . . . Repair Stations 12 | . . . . . 4 6 . . . . . . . . . . . . . 2 . . . . . Recycling Units . | . . . . . . . . . . . . . . . . . . . . . . . . . . Scanalyzers 5 | . . . . . 2 . . . . . . . . . . . . . . 3 . . . . . Garrison Access 6 | . . . . . . 3 . 3 . . . . . . . . . . . . . . . . . Terminal Hacks 58 | . 4 1 2 . 3 4 . 1 . 2 22 . . . 1 . 2 4 . 1 7 . . 4 . Record 7 | . . . 1 . . . . . . 2 2 . . . . . 2 . . . . . . . . Part Schematic 16 | . . . . . . 1 . . . . 11 . . . . . . 4 . . . . . . . Robot Schematic 6 | . . . . . . . . . . . 6 . . . . . . . . . . . . . . Robot Analysis 4 | . 1 1 . . 2 . . . . . . . . . . . . . . . . . . . . Prototype ID Bank 3 | . . . . . . . . . . . 3 . . . . . . . . . . . . . . Open Door 6 | . . . . . . . . . . . . . . . . . . . . 1 5 . . . . Branch Access Points 3 | . . . . . 1 . . 1 . . . . . . 1 . . . . . . . . . . Terminal Index 1 | . . . . . . . . . . . . . . . . . . . . . . . . 1 . Alert Level 1 | . 1 . . . . . . . . . . . . . . . . . . . . . . . . Locate Traps 6 | . 1 . . . . 2 . . . . . . . . . . . . . . 1 . . 2 . Recall Extermination 1 | . . . . . . 1 . . . . . . . . . . . . . . . . . . . Zone Layout 3 | . 1 . . . . . . . . . . . . . . . . . . . 1 . . 1 . Derelict Proto ID Bank 1 | . . . 1 . . . . . . . . . . . . . . . . . . . . . . Fabricator Hacks 7 | . . . . . . . . 2 . . . . . . . . . . . 5 . . . . . Load Schematic 5 | . . . . . . . . 2 . . . . . . . . . . . 3 . . . . . Build 2 | . . . . . . . . . . . . . . . . . . . . 2 . . . . . Repair Station Hacks 6 | . . . . . 3 2 . . . . . . . . . . . . . 1 . . . . . Scan Component 4 | . . . . . 2 1 . . . . . . . . . . . . . 1 . . . . . Repair 2 | . . . . . 1 1 . . . . . . . . . . . . . . . . . . . Recycling Unit Hacks . | . . . . . . . . . . . . . . . . . . . . . . . . . . Scanalyzer 4 | . . . . . 2 . . . . . . . . . . . . . . 2 . . . . . Insert Component 2 | . . . . . 1 . . . . . . . . . . . . . . 1 . . . . . Analyze 2 | . . . . . 1 . . . . . . . . . . . . . . 1 . . . . . Garrison Access Hacks 3 | . . . . . . 2 . 1 . . . . . . . . . . . . . . . . . Seal Access 3 | . . . . . . 2 . 1 . . . . . . . . . . . . . . . . . Unauthorized Hacks 15 | . 5 . . . 6 1 . . . . . . . . . . . . . 2 1 . . . . Terminals 14 | . 5 . . . 6 1 . . . . . . . . . . . . . 1 1 . . . . Assimilate 1 | . . . . . . . . . . . . . . . . . . . . 1 . . . . . Botnet 1 | . . . . . 1 . . . . . . . . . . . . . . . . . . . . Disrupt 1 | . . . . . . . . . . . . . . . . . . . . . 1 . . . . Operators 1 | . . . . . . 1 . . . . . . . . . . . . . . . . . . . Skim 10 | . 5 . . . 5 . . . . . . . . . . . . . . . . . . . . Fabricators 1 | . . . . . . . . . . . . . . . . . . . . 1 . . . . . Recompile 1 | . . . . . . . . . . . . . . . . . . . . 1 . . . . . Repair Stations . | . . . . . . . . . . . . . . . . . . . . . . . . . . Recycling Units . | . . . . . . . . . . . . . . . . . . . . . . . . . . Scanalyzers . | . . . . . . . . . . . . . . . . . . . . . . . . . . Garrison Access . | . . . . . . . . . . . . . . . . . . . . . . . . . . Data Cores Recovered 2 | . . . . . . . . 1 . . . . . . . . . . . . . . . 1 . Used . | . . . . . . . . . . . . . . . . . . . . . . . . . . Hacking Detections 32 | . 6 1 . . 7 3 . 5 . 1 . . . . 2 . . . . 3 2 1 . 1 . Full Trace Events 6 | . . 1 . . 1 1 . 3 . . . . . . . . . . . . . . . . . Feedback Events 2 | . . 1 . . . 1 . . . . . . . . . . . . . . . . . . . Corruption 1 | . . 1 . . . . . . . . . . . . . . . . . . . . . . . Hackware Fried 1 | . . . . . . 1 . . . . . . . . . . . . . . . . . . . Feedback Blocked . | . . . . . . . . . . . . . . . . . . . . . . . . . . Robot Schematics Acquired 8 | . . . . . . . . . . . 6 . . . . . . 2 . . . . . . . Robots Built . | . . . . . . . . . . . . . . . . . . . . . . . . . . Authchips . | . . . . . . . . . . . . . . . . . . . . . . . . . . Time . | . . . . . . . . . . . . . . . . . . . . . . . . . . Total Robot Build Rating . | . . . . . . . . . . . . . . . . . . . . . . . . . . Part Schematics Acquired 31 | . . . . . 1 1 . . . . 11 . . . . . . 18 . . . . . . . Parts Built 2 | . . . . . . . . . . . . . . . . . . . . 2 . . . . . Authchips 2 | . . . . . . . . . . . . . . . . . . . . 2 . . . . . Time 135 | . . . . . . . . . . . . . . . . . . . . 135 . . . . . Total Part Build Rating 7 | . . . . . . . . . . . . . . . . . . . . 7 . . . . . Parts Repaired 2 | . . . . . 1 1 . . . . . . . . . . . . . . . . . . . Time 97 | . . . . . 53 44 . . . . . . . . . . . . . . . . . . . Parts Recycled . | . . . . . . . . . . . . . . . . . . . . . . . . . . Recycled Matter . | . . . . . . . . . . . . . . . . . . . . . . . . . . Retrieved Matter . | . . . . . . . . . . . . . . . . . . . . . . . . . . Retrieved Components . | . . . . . . . . . . . . . . . . . . . . . . . . . . Parts Scanalyzed 2 | . . . . . 1 . . . . . . . . . . . . . . 1 . . . . . Part Schematics Acquired 1 | . . . . . 1 . . . . . . . . . . . . . . . . . . . . Parts Damaged . | . . . . . . . . . . . . . . . . . . . . . . . . . . Bothacking | -11 -10 -10 -10 -9 -8 -7 -7 -7 -7 -7 -7 -6 -6 -6 -6 -6 -6 -6 -5 -5 -5 -5 -5 -5 -4 ------------ Run | Yrd Mat Min Exi Min Mat Fac Was Fac Low Low Dat Pro Fac Was Fac Low Low Zio Pro Fac Ext Cet Arc Hub Fac Used RIF Installer . | . . . . . . . . . . . . . . . . . . . . . . . . . . Robots Hacked . | . . . . . . . . . . . . . . . . . . . . . . . . . . Non-combat . | . . . . . . . . . . . . . . . . . . . . . . . . . . Combat . | . . . . . . . . . . . . . . . . . . . . . . . . . . Robot Hacks Applied . | . . . . . . . . . . . . . . . . . . . . . . . . . . Relay Couplers Released 4 | . . . . . . 2 . . . . . . . . . . . . . 2 . . . . . Machine Destruction 4 | . . . . . . 2 . . . . . . . . . . . . . 2 . . . . . Fabnet Peak Effective % . | . . . . . . . . . . . . . . . . . . . . . . . . . . Robots Rewired 7 | . . . . . . . . . . . . . . . . . . . . . 7 . . . . Allies Hacked . | . . . . . . . . . . . . . . . . . . . . . . . . . . Hacks Repelled . | . . . . . . . . . . . . . . . . . . . . . . . . . . Allies | -11 -10 -10 -10 -9 -8 -7 -7 -7 -7 -7 -7 -6 -6 -6 -6 -6 -6 -6 -5 -5 -5 -5 -5 -5 -4 -------- Run | Yrd Mat Min Exi Min Mat Fac Was Fac Low Low Dat Pro Fac Was Fac Low Low Zio Pro Fac Ext Cet Arc Hub Fac Total Allies 47 | . . . . 4 . . 20 . . . . . . 1 . . . 2 . 1 14 5 . . . Largest Group 20 | . . . . 3 1 . 20 17 . . . . . 1 . . . 2 2 1 9 13 7 5 . Highest-Rated Group 861 | . . . . 40 31 . 523 439 . . . . . 31 . . . 192 192 26 414 861 593 411 . Highest-Rated Ally 159 | . . . . 31 31 . 35 31 . . . . . 31 . . . 96 96 26 159 159 151 96 . Total Orders 11 | . . . . . . . . . . . . . . . . . . . . . 2 1 2 6 . STAY 2 | . . . . . . . . . . . . . . . . . . . . . . 1 1 . . FOLLOW 1 | . . . . . . . . . . . . . . . . . . . . . . . 1 . . EXPLORE 2 | . . . . . . . . . . . . . . . . . . . . . . . . 2 . RETURN 6 | . . . . . . . . . . . . . . . . . . . . . 2 . . 4 . Ally Attacks 468 | . . . . 17 8 . . 153 . . . . . 29 . . . . 35 . 46 46 35 98 1 Total Damage 10547 | . . . . 173 107 . . 2133 . . . . . 413 . . . . 1819 . 883 1354 822 2818 25 Kills 69 | . . . . 3 . . . 22 . . . . . 1 . . . . 9 . 7 6 3 18 . Allies Corrupted 2 | . . . . . . . . . . . . . . 1 . . . . . . . . . 1 . Allies Melted 2 | . . . . . . . . . . . . . . . . . . . 1 . 1 . . . . Intel | -11 -10 -10 -10 -9 -8 -7 -7 -7 -7 -7 -7 -6 -6 -6 -6 -6 -6 -6 -5 -5 -5 -5 -5 -5 -4 ------- Run | Yrd Mat Min Exi Min Mat Fac Was Fac Low Low Dat Pro Fac Was Fac Low Low Zio Pro Fac Ext Cet Arc Hub Fac Robot Analysis Total 4 | . 1 1 . . 2 . . . . . . . . . . . . . . . . . . . . Derelict Logs Recovered 11 | . . 2 . 2 . . . . 1 1 . . . . . 1 1 1 2 . . . . . . Drone Launches 10 | . . . . . . . . . . . . . . . . . . . . . 4 . . 5 1 Drone Recoveries 8 | . . . . . . . . . . . . . . . . . . . . . 4 . . 4 . Exploration | -11 -10 -10 -10 -9 -8 -7 -7 -7 -7 -7 -7 -6 -6 -6 -6 -6 -6 -6 -5 -5 -5 -5 -5 -5 -4 ------------- Run | Yrd Mat Min Exi Min Mat Fac Was Fac Low Low Dat Pro Fac Was Fac Low Low Zio Pro Fac Ext Cet Arc Hub Fac Turns Passed 29744 | 118 1471 552 347 1005 2769 2087 904 1130 949 652 691 573 898 217 950 700 1600 1960 1051 2689 2357 732 1149 1673 520 Spaces Moved 14847 | 58 767 424 271 492 1138 1926 597 537 533 388 263 310 376 93 465 399 959 1166 388 1144 878 261 243 506 265 Core 214 | 9 . . . . . 39 . . . . . . . . . . . . . . . . 20 . 146 Treads 10293 | . 390 . . 88 652 32 417 537 533 388 263 310 182 . 465 399 959 1166 388 1144 878 261 223 506 112 Legs . | . . . . . . . . . . . . . . . . . . . . . . . . . . Wheels 2463 | 49 377 424 271 404 486 165 . . . . . . 194 93 . . . . . . . . . . . Hover 1242 | . . . . . . 1242 . . . . . . . . . . . . . . . . . . . Flight 635 | . . . . . . 448 180 . . . . . . . . . . . . . . . . . 7 Fastest Speed 28 | 50 80 125 110 155 110 28 28 160 160 160 160 160 130 130 160 160 160 160 160 160 160 160 240 160 35 Average Speed 157 | 90 127 125 124 170 175 62 120 160 160 160 160 162 188 146 160 160 160 160 168 178 230 208 446 236 131 Slowest Speed 2750 | 200 160 125 155 240 241 255 160 160 160 160 160 250 250 160 160 160 160 160 240 240 240 240 2750 240 240 Overloaded Moves . | . . . . . . . . . . . . . . . . . . . . . . . . . . Propulsion Burnouts . | . . . . . . . . . . . . . . . . . . . . . . . . . . Robots Hopped 12 | . . . . . . 9 2 . . . . . . . . . . . . . . . . . 1 Cave-ins Triggered . | . . . . . . . . . . . . . . . . . . . . . . . . . . Exploration Rate (%) 60 | 4 97 86 60 87 81 43 95 17 64 59 80 60 10 75 19 54 93 85 55 32 88 67 95 56 9 Regions Visited 25 Branch Regions 15 Pre-discovered Areas 7 | . . . 1 . 1 . . . . . 1 . . . . . 1 2 1 . . . . . . Known Exits Taken 8 | . 1 . 1 . 1 . . 1 . . . . . . 1 . . . 1 1 . . . 1 . Unknown Exits Taken 13 | 1 . 1 . 1 . . . . 1 1 1 1 . . . 1 1 1 . . 1 1 1 . . Scrap Searched 19 | . . 1 . 2 . . . . 3 1 . 2 . . . . 4 4 2 . . . . . . Spaces Dug 135 | . 7 10 . . 14 9 . 3 6 . . . 5 . . 13 . . 26 29 1 . . 10 2 Terrain Destroyed 954 | . 7 24 . . 36 61 1 23 13 3 2 55 33 . . 20 38 . 70 42 6 4 3 460 53 Melee 11 | . . . . . . 6 . . . . . . 5 . . . . . . . . . . . . Projectile 169 | . 7 . . . . 7 1 8 13 3 2 4 1 . . . . . 1 42 6 4 3 55 12 AOE 774 | . . 24 . . 36 48 . 15 . . . 51 27 . . 20 38 . 69 . . . . 405 41 Terrain Rammed . | . . . . . . . . . . . . . . . . . . . . . . . . . . Walls Destroyed . | . . . . . . . . . . . . . . . . . . . . . . . . . . Machines Disabled . | . . . . . . . . . . . . . . . . . . . . . . . . . . Actions | -11 -10 -10 -10 -9 -8 -7 -7 -7 -7 -7 -7 -6 -6 -6 -6 -6 -6 -6 -5 -5 -5 -5 -5 -5 -4 --------- Run | Yrd Mat Min Exi Min Mat Fac Was Fac Low Low Dat Pro Fac Was Fac Low Low Zio Pro Fac Ext Cet Arc Hub Fac Total 19826 | 87 1171 441 281 642 1786 2636 710 775 597 413 454 361 524 160 628 435 1014 1260 748 1664 1162 420 270 788 399 Wait 3193 | . 325 9 . 132 420 481 52 200 25 20 101 25 98 21 112 23 40 55 283 364 104 95 1 119 88 Move 14805 | 57 766 423 270 491 1137 1912 593 536 532 387 262 309 376 92 464 398 958 1165 387 1143 877 260 242 505 263 Hop 7 | . . . . . . 5 1 . . . . . . . . . . . . . . . . . 1 Pick Up 194 | 6 13 2 1 4 38 14 . 12 6 1 8 2 3 7 11 . . 3 12 17 9 8 3 14 . Fast Attach 175 | 7 1 . 3 . 20 33 11 3 4 . 10 2 9 2 1 . 4 15 7 11 11 6 2 8 5 Attach 87 | . 1 . . . 9 7 . 1 2 . 7 2 2 3 1 . . 3 1 6 15 4 1 16 6 Detach 65 | . . . 1 . 3 13 1 . 1 . 3 . 3 3 . . . 2 1 4 19 1 . 8 2 Swap 150 | 1 17 2 1 4 17 16 3 1 1 . 3 7 5 2 7 2 2 1 14 13 8 10 . 11 2 Drop 283 | . 9 1 5 2 57 29 11 5 8 1 11 4 8 13 11 . 4 15 21 19 18 17 4 9 1 Fire 688 | 16 37 4 . 9 84 57 38 17 18 4 49 10 12 17 20 12 6 1 22 77 24 11 17 97 29 Melee 65 | . . . . . . 59 . . . . . . 6 . . . . . . . . . . . . Ram 4 | . 1 . . . 1 . . . . . . . . . . . . . . . . . . . 2 Kick . | . . . . . . . . . . . . . . . . . . . . . . . . . . Crush 20 | . 1 . . . . . . . . . . . 2 . 1 . . . . 10 5 . . 1 . Escape Stasis 18 | . . . . . . 10 . . . . . . . . . . . . . . 8 . . . . Rewire 64 | . . . . . . . . . . . . . . . . . . . . . 64 . . . . Trap . | . . . . . . . . . . . . . . . . . . . . . . . . . . Miscellaneous 8 | . . . . . . . . . . . . . . . . . . . . . . 8 . . . Route ------- -11/Scrapyard -10/Materials (discovered 6 exits: [*Mat x3] / *Min x2 / *Sub) -10/Mines (discovered 3 exits: [*Mat x2] / *Exi) -10/Exiles (discovered 2 exits: *Min x2) -9/Mines (discovered 2 exits: *Mat x2) -8/Materials (discovered 3 exits: *Fac x3) -7/Factory (discovered 4 exits: *Fac x2 / Sto / Low) -7/Waste -7/Factory (discovered 4 exits: *Fac / Sto / *Low x2) -7/Lower Caves -7/Lower Caves -7/Data Miner -6/Proximity Caves -6/Factory -6/Waste -6/Factory (discovered 4 exits: *Fac x2 / *Low x2) -6/Lower Caves -6/Lower Caves (discovered 2 exits: *Fac / *Zio) -6/Zion -5/Proximity Caves -5/Factory (discovered 3 exits: Fac / *Upp / *Ext) -5/Extension (discovered 2 exits: *Fac / *Cet) -5/Cetus (discovered 2 exits: *Fac / [*Arc]) -5/Archives (discovered 3 exits: *Fac / *Hub x2) -5/Hub_04(d) -4/Factory History --------- Turn | Location | Event 24 | -11/Scrapyard | Discovered new exit (range 16) 119 | -11/Scrapyard | Entered Materials 221 | -10/Materials | Discovered new exit (range 15) 267 | -10/Materials | Met 8R-AWN 310 | -10/Materials | Build established: Mutant 529 | -10/Materials | Discovered new exit (range 4) 679 | -10/Materials | Discovered new exit (range 10) 827 | -10/Materials | Discovered new exit (range 7) 1037 | -10/Materials | Identified exit to Subcaves 1037 | -10/Materials | Identified exit to Mines 1178 | -10/Materials | Learned Storage terminal intel 1235 | -10/Materials | Learned location of 1 exit from Recycling 1282 | -10/Materials | Loaded intel: 8 terminal locations 1344 | -10/Materials | Learned 4 Recycling zone layouts 1380 | -10/Materials | Learned location of 1 exit from Recycling 1381 | -10/Materials | Build established: Scavenger-Mutant 1428 | -10/Materials | Learned location of 2 exits from Materials 1590 | -10/Materials | Entered Mines 1591 | -10/Mines | Followed 8R-AWN into the Mines 1626 | -10/Mines | Learned Materials non-interactive machine intel 1657 | -10/Mines | Discovered new exit (range 12) 1688 | -10/Mines | Learned Materials stockpile data 1797 | -10/Mines | Discovered new exit (range 5) 1856 | -10/Mines | Received a Rocket Launcher from a helpful Derelict 1959 | -10/Mines | Discovered new exit (range 8) 2142 | -10/Mines | Entered Exiles 2143 | -10/Exiles | Identified exit to Mines 2170 | -10/Exiles | Welcomed by 8R-AWN 2189 | -10/Exiles | Met EX-HEX 2226 | -10/Exiles | Met EX-BIN 2238 | -10/Exiles | Aligned with FarCom system 2239 | -10/Exiles | Given EX-Vault access code 2266 | -10/Exiles | Opened EX-Vault 2280 | -10/Exiles | Found Firepult 2316 | -10/Exiles | Warned to stay clear of 0b10 Research branches 2352 | -10/Exiles | Met EX-DEC 2357 | -10/Exiles | Learned location of Zion (-6) 2489 | -10/Exiles | Left Exiles lab with Firepult 2489 | -10/Exiles | Entered Mines 2497 | -9/Mines | Assisted by bots powering up and referring to "LRC-V3" 2508 | -9/Mines | Met a Derelict bent on vengeance 2786 | -9/Mines | Learned location of 1 exit from Materials 2811 | -9/Mines | Build established: Mutant 2988 | -9/Mines | Learned Materials terminal intel 3135 | -9/Mines | Discovered new exit (range 6) 3382 | -9/Mines | Escorted by a lone wolf Derelict 3383 | -9/Mines | Discovered new exit (range 6) 3494 | -9/Mines | Entered Materials 3494 | -8/Materials | Accompanied by 1 ally 3494 | -8/Materials | Evolved 4 slots: Propulsion x1, Utility x3 3495 | -8/Materials | Identified exit to Factory 3497 | -8/Materials | Loaded intel: 33 non-interactive machine locations 3498 | -8/Materials | Loaded intel: 12 terminal locations 3802 | -8/Materials | Build established: Scavenger-Mutant 4066 | -8/Materials | Repaired Broken Adv. Treads 4167 | -8/Materials | Build established: Mutant 4736 | -8/Materials | Build established: Scavenger-Mutant 5550 | -8/Materials | Learned 2 Storage zone layouts 5571 | -8/Materials | Learned Factory stockpile data 5585 | -8/Materials | Learned location of 1 exit from Recycling 5586 | -8/Materials | Learned Storage stockpile data 5589 | -8/Materials | Learned 2 Storage zone layouts 5725 | -8/Materials | Build established: Mutant 6263 | -8/Materials | Entered Factory 6263 | -7/Factory | Evolved 2 slots: Propulsion x1, Utility x1 6264 | -7/Factory | Identified exit to Storage 6264 | -7/Factory | Identified exit to Lower Caves 6555 | -7/Factory | Build established: Hacker-Mutant 6619 | -7/Factory | Central database locked down 6633 | -7/Factory | Hacking Suite fried by hacking feedback 6677 | -7/Factory | Repaired Broken Cld. Airjet? 6937 | -7/Factory | Build established: Mutant 6981 | -7/Factory | Discovered new exit (range 3) 7463 | -7/Factory | Search patrols dispatched 7536 | -7/Factory | System corruption reached 10% 7598 | -7/Factory | Lost 7 parts (1p3n2u1w) 7633 | -7/Factory | Core integrity fell below 50% 8045 | -7/Factory | Discovered new exit (range 15) 8263 | -7/Factory | First assault squad dispatched 8350 | -7/Factory | Manually triggered Chute Trap 8350 | -7/Factory | Sucked down chute 8350 | -7/Factory | Entered Waste 8351 | -7/Waste | Joined by Warlord forces that had cleared the area 8369 | -7/Waste | Build established: Sprinter 8558 | -7/Waste | Discovered new exit (range 16) 8698 | -7/Waste | Build established: Scavenger-Mutant 8851 | -7/Waste | Found Damper Plating 8878 | -7/Waste | Found Damper Plating 9220 | -7/Waste | Found Damper Plating 9254 | -7/Waste | Entered Factory 9254 | -7/Factory | Accompanied by 17 allies 9707 | -7/Factory | Lost 5 allies 9873 | -7/Factory | Garrison activated, responded to threat 10194 | -7/Factory | Lost 6 allies 10380 | -7/Factory | Discovered new exit (range 11) 10384 | -7/Factory | Entered Lower Caves 10549 | -7/Lower Caves | Encountered a Warlord checkpoint 10740 | -7/Lower Caves | Learned location of 1 exit from Factory 10783 | -7/Lower Caves | Attracted the attention of an 0b10 checkpoint 11116 | -7/Lower Caves | Found Alien Artifact 11116 | -7/Lower Caves | Identified Core Expander 11116 | -7/Lower Caves | Installed Core Expander, added new Weapon slot 11254 | -7/Lower Caves | Discovered new exit (range 13) 11333 | -7/Lower Caves | Entered another Lower Caves area 11550 | -7/Lower Caves | Build established: Scavenger-Tank 11654 | -7/Lower Caves | Learned Factory garrison access intel 11716 | -7/Lower Caves | Encountered a Warlord checkpoint 11722 | -7/Lower Caves | Discovered new exit (range 8) 11985 | -7/Lower Caves | Entered Data Miner 11987 | -7/Data Miner | Discovered new exit (range 6) 12017 | -7/Data Miner | Met Data Miner 12056 | -7/Data Miner | Learned location of Section 7 (-2) 12056 | -7/Data Miner | Acquired the access code to Warlord's prototype stash 12070 | -7/Data Miner | Received God Mode back door access code from Data Miner 12251 | -7/Data Miner | Data Conduit disabled 12287 | -7/Data Miner | Build established: Scavenger-Mutant 12676 | -7/Data Miner | Entered Proximity Caves 12709 | -6/Proximity Caves | Attracted the attention of an 0b10 checkpoint 12756 | -6/Proximity Caves | Build established: Scavenger-Gunner 13205 | -6/Proximity Caves | Build established: Scavenger-Tank 13219 | -6/Proximity Caves | Discovered new exit (range 6) 13249 | -6/Proximity Caves | Entered Factory 13249 | -6/Factory | Evolved 2 slots: Power x1, Utility x1 13250 | -6/Factory | Identified exit to Factory 13251 | -6/Factory | Loaded intel: 4 garrison access locations 13254 | -6/Factory | Lost 3 parts (1n1u1w) 13533 | -6/Factory | Garrison activated, responded to threat 13856 | -6/Factory | Garrison activated, responded to threat 14147 | -6/Factory | Sucked down chute 14147 | -6/Factory | Entered Waste 14148 | -6/Waste | Met a frightened Derelict 14162 | -6/Waste | EMP discharged 14172 | -6/Waste | Spotted C-40 Crusher 14179 | -6/Waste | Destroyed C-40 Crusher 14180 | -6/Waste | Spotted C-40 Crusher 14191 | -6/Waste | Spotted C-40 Crusher 14194 | -6/Waste | Allies destroyed C-40 Crusher 14203 | -6/Waste | Spotted C-40 Crusher 14207 | -6/Waste | Destroyed C-40 Crusher 14215 | -6/Waste | Spotted C-40 Crusher 14220 | -6/Waste | Destroyed C-40 Crusher 14225 | -6/Waste | Destroyed C-40 Crusher 14233 | -6/Waste | Spotted C-40 Crusher 14240 | -6/Waste | Destroyed C-40 Crusher 14262 | -6/Waste | EMP discharged 14281 | -6/Waste | Found Damper Plating 14348 | -6/Waste | Discovered new exit (range 11) 14362 | -6/Waste | EMP discharged 14364 | -6/Waste | Entered Factory 14463 | -6/Factory | Identified exit to Lower Caves 14481 | -6/Factory | Discovered exit to Factory (range 9) 14526 | -6/Factory | Build established: Scavenger-Skirmisher 14601 | -6/Factory | Discovered exit to Factory (range 16) 15314 | -6/Factory | Entered Lower Caves 15474 | -6/Lower Caves | Spotted B-75 Beast 15480 | -6/Lower Caves | Destroyed B-75 Beast 15494 | -6/Lower Caves | Learned 4 Factory zone layouts 15612 | -6/Lower Caves | Build established: Scavenger-Tank 15996 | -6/Lower Caves | Discovered new exit (range 6) 16014 | -6/Lower Caves | Entered another Lower Caves area 16359 | -6/Lower Caves | Discovered new exit (range 10) 17231 | -6/Lower Caves | Discovered exit to Factory (range 8) 17614 | -6/Lower Caves | Entered Zion 17631 | -6/Zion | Found Unknown Piercing Weapon 17631 | -6/Zion | Identified CR-A16's Pointy Stick 17691 | -6/Zion | Given A8's code to call for help 17847 | -6/Zion | Received a hallucinogenic algorithm 17879 | -6/Zion | Discovered new exit (range 13) 18232 | -6/Zion | Learned 8 Factory zone layouts 18724 | -6/Zion | Learned location of Warlord (-4) 18929 | -6/Zion | Rebuked by Imprinter 19183 | -6/Zion | Enhanced Grunt warped into view, answering call for help 19184 | -6/Zion | Enhanced Grunt warped into view, answering call for help 19574 | -6/Zion | Entered Proximity Caves 19574 | -5/Proximity Caves | Accompanied by 2 allies 19700 | -5/Proximity Caves | Found Unknown Protection 19835 | -5/Proximity Caves | Identified Imp. Powered Armor 20094 | -5/Proximity Caves | Spotted B-75 Beast 20124 | -5/Proximity Caves | Destroyed B-75 Beast 20375 | -5/Proximity Caves | Learned Factory security intel 20420 | -5/Proximity Caves | Learned location of Armory (-4) 20487 | -5/Proximity Caves | Attracted the attention of an 0b10 checkpoint 20572 | -5/Proximity Caves | Discovered exit to Factory (range 3) 20625 | -5/Proximity Caves | Entered Factory 20625 | -5/Factory | Evolved 2 slots: Utility x2 20626 | -5/Factory | Identified exit to Extension 20627 | -5/Factory | Identified exit to Factory 20627 | -5/Factory | Identified exit to Upper Caves 21680 | -5/Factory | Cargo convoy interrupted 22503 | -5/Factory | Fabricated Huge Storage Unit (x1) 22855 | -5/Factory | Fabricated Combat Drone Bay (x1) 23278 | -5/Factory | System corruption reached 10% 23314 | -5/Factory | Entered Extension 23476 | -5/Extension | Rescued a captive Derelict 23477 | -5/Extension | Rescued a captive Derelict 23947 | -5/Extension | Build established: Scavenger-Mutant 24001 | -5/Extension | Lost 3 allies 24438 | -5/Extension | Spotted B-75 Beast 24441 | -5/Extension | Destroyed B-75 Beast 24497 | -5/Extension | Allies destroyed B-75 Beast 24526 | -5/Extension | Build established: Scavenger-Tank 25062 | -5/Extension | Rescued A7 25089 | -5/Extension | Rescued a captive Derelict 25206 | -5/Extension | Rescued a captive Derelict 25433 | -5/Extension | Rescued a captive Derelict 25434 | -5/Extension | Rescued a captive Derelict 25619 | -5/Extension | Discovered exit to Factory (range 10) 25621 | -5/Extension | Discovered new exit (range 6) 25671 | -5/Extension | Entered Cetus 25671 | -5/Cetus | Accompanied by 9 allies (A7) 25676 | -5/Cetus | Acquired a Cetus Manufacturing Module code from A7 25702 | -5/Cetus | Spotted Cetus Guard 25702 | -5/Cetus | Spotted Cetus Guard 25706 | -5/Cetus | Spotted Cetus Guard 25708 | -5/Cetus | Allies destroyed Cetus Guard 25709 | -5/Cetus | Destroyed Cetus Guard 25710 | -5/Cetus | Spotted Cetus Guard 25716 | -5/Cetus | Destroyed Cetus Guard 25720 | -5/Cetus | Allies destroyed Cetus Guard 25869 | -5/Cetus | Started Cetus Manufacturing Module 25894 | -5/Cetus | Manufactured an Enhanced Grunt 25919 | -5/Cetus | Manufactured an Enhanced Grunt 25944 | -5/Cetus | Manufactured an Enhanced Grunt 25969 | -5/Cetus | Manufactured an Enhanced Grunt 25994 | -5/Cetus | Manufactured an Enhanced Grunt 26031 | -5/Cetus | Discovered new exit (range 16) 26043 | -5/Cetus | Build established: Scavenger-Mutant 26080 | -5/Cetus | Escorted A7 to Cetus Mainframe 26154 | -5/Cetus | Spotted Cetus Guard 26155 | -5/Cetus | Spotted Cetus Guard 26157 | -5/Cetus | Spotted Cetus Guard 26160 | -5/Cetus | Spotted Cetus Guard 26160 | -5/Cetus | Destroyed Cetus Guard 26174 | -5/Cetus | Allies destroyed Cetus Guard 26174 | -5/Cetus | Destroyed Cetus Guard 26176 | -5/Cetus | Allies destroyed Cetus Guard 26188 | -5/Cetus | Discovered exit to Factory (range 16) 26199 | -5/Cetus | Lost 3 allies 26200 | -5/Cetus | Met Revision 17 26356 | -5/Cetus | Build established: Scavenger-Tank 26403 | -5/Cetus | Entered Archives 26403 | -5/Archives | Accompanied by 7 allies (A7) 26408 | -5/Archives | Received a hacking code to weaken MAIN.C 26508 | -5/Archives | Discovered exit to Factory (range 15) 26835 | -5/Archives | Build established: Scavenger-Gunner 27124 | -5/Archives | Discovered new exit (range 15) 27143 | -5/Archives | Discovered new exit (range 13) 27552 | -5/Archives | Entered Hub_04(d) 27552 | -5/Hub_04(d) | Accompanied by 5 allies 27615 | -5/Hub_04(d) | Discovered exit to Factory (range 13) 27646 | -5/Hub_04(d) | Build established: Scavenger-Tank 28152 | -5/Hub_04(d) | First assault squad dispatched 28437 | -5/Hub_04(d) | Network Hub disabled 28447 | -5/Hub_04(d) | Disrupted transfer network 28459 | -5/Hub_04(d) | Spotted Lightning 28462 | -5/Hub_04(d) | Spotted Lightning 28462 | -5/Hub_04(d) | Spotted Lightning 28471 | -5/Hub_04(d) | Destroyed Lightning 28474 | -5/Hub_04(d) | Garrison activated, responded to threat 28519 | -5/Hub_04(d) | Destroyed 12 combat bots 28521 | -5/Hub_04(d) | Destroyed Lightning 28605 | -5/Hub_04(d) | Found Prototype Device 28605 | -5/Hub_04(d) | Identified Exp. Phase Shifter 28662 | -5/Hub_04(d) | Destroyed Lightning 29105 | -5/Hub_04(d) | Lost 3 parts (1n1u1w) 29152 | -5/Hub_04(d) | System corruption reached 30% 29185 | -5/Hub_04(d) | Lost 4 parts (1n3u) 29201 | -5/Hub_04(d) | Network Hub disabled 29225 | -5/Hub_04(d) | Entered Factory 29225 | -4/Factory | Evolved 2 slots: Propulsion x2 29464 | -4/Factory | Build established: Scavenger-Gunner 29522 | -4/Factory | First assault squad dispatched 29568 | -4/Factory | Garrison activated, responded to threat 29597 | -4/Factory | System corruption reached 10% 29629 | -4/Factory | Released all parts (4) 29660 | -4/Factory | Lost 23 parts (2p3n8u10w) 29689 | -4/Factory | Core integrity fell below 50% 29705 | -4/Factory | Core integrity fell below 20% 29743 | -4/Factory | Destroyed 7 combat bots 29745 | -4/Factory | Destroyed by G-67 Veteran with Field Laser Last Messages --------------- 29721_ Fusion Modulator explodes. 29721_ G-67 Veteran destroyed. 29721_ Destroyed Lgt. Antimatter Reactor. 29721_ G-67 Veteran destroyed. 29721_ P-70 Sage destroyed. 29721_ Destroyed Unknown Energy Gun. 29721_ Fusion Modulator explodes. 29721_ G-73 Enforcer destroyed. 29721_ Destroyed Power Sword. 29721_ Y-64 Sentinel destroyed. 29721_ Lgt. Antimatter Reactor melted. 29721_ G-67 Veteran destroyed. 29722_ L-61 Swordsman critical meltdown. 29725_ Combat Drone released from Combat Drone Bay. 29725_ ALERT: Rogue bot located, Programmers report to Factory Zone 7K. 29727_ Slug penetrates G-67 Veteran. 29729_ >> Lost connection to Combat Drone. 29732_ System corrupted: Matter fused (-7). 29736_ Identified Cld. Cesium-ion Thruster. Map ----- +----------------------------------------------------+ | | | | | | | | | | | | | | | | | | | | | | | | | | | | | | | | | ??????????????????#############??????????????????? | | #####?????????????# #??????????????????? | | #????????????# * #??????????????????? | | ############?# #??????????????????? | | + #?#! #??????????????????? | | # ######## #?# ! !#??????????????????? | | ###### #??????# #?# #??????????????????? | | ??# #??????# #?# s #??????????????????? | | ??# ####??????# #######;;######### ????? | | ??# #?????????# # ; @ ????? | | ### ###???????# #;;;;;; #########??????????????? | | # #???????# g !% ;#????????????????????## | | #???????# %* ;#????????????????????# | | #???????# =% %% ;#????????????????????# | | #???????#*= = ; ????????????????????# | | # #??????#;[%[ %= ????????????????????# | | ###+#####????#; !=% ;##???????????????????# | | #????#; ! ;#????????????????????# | | #????#; ;#????????????????????# | | "" """ ######; #????????????????????# | | "" """ + g #????????????????????? | | "" """ # #?????????????######### | | !# g #?????????????# | | ######### g #?????????????# | | ????????############## gg #?????????????# | | ?????????????????????# #?????????????# | | ?????????????????????# #?????????????# | | ?????????????????????# #?????????????# | | ?????????????????????# #?????????????# | | ????????????######???# +?????????????# | | ????????????# ??# #?????????????# | | ????????????# ??# #?????????????#/####### | | ????????????# ?# #?????????????# #?????? | | ????????????# ?# #?????????????# #?????? | +----------------------------------------------------+ Best States ------------- Heat Dissipation 107 Coolant Potential 100 Energy Generation 45 Energy Capacity 790 Matter Stores 300 Matter Capacity 300 Sight Range 22 Terrain Scan Density 10 Jamming Range 12 Additional Mass Support 9 EM Shielding 3 Corruption Block 15 Armor Coverage 3200 Resistance: KI 20 Resistance: TH 10 Resistance: EM 90 Propulsion Shielding 66 Utility Shielding 66 Weapon Cycling 20 Melee Speed Boost 20 Phase Shifting 20 Evasion (%) 64 Targeting Accuracy 20 Melee Accuracy 6 Core Analysis 6 Recoil Reduction 4 Particle Charging 25 Salvage Targeting 2 Offensive Hacking 20 Defensive Hacking 14 Authchip Count 1 Item Schematics ----------------- Imp. Flight Unit | -8/Materials | Scanalyzed Huge Storage Unit | -7/Factory | Hacked Combat Drone Bay | -7/Data Miner | Free Lgt. Regenerative Plating | -7/Data Miner | Free Cld. Aerolev Unit | -7/Data Miner | Free Exp. Power Shielding | -7/Data Miner | Free Cld. Plasma Cannon | -7/Data Miner | Free Arm. Medium Treads | -7/Data Miner | Free Lyr. Heavy Armor Plating | -7/Data Miner | Free Hvy. Shock Bomb Launcher | -7/Data Miner | Free Imp. Focal Shield | -7/Data Miner | Free Adv. Reaction Control System | -7/Data Miner | Free Centrium Wheel | -7/Data Miner | Free Riot Gun | -6/Zion | Free Battle Cannon | -6/Zion | Free Ripper | -6/Zion | Free Phasing Sabre | -6/Zion | Free Imp. Recalibrator | -6/Zion | Archive Hyp. Gauss Rifle | -6/Zion | Archive Imp. Remote Datajack | -6/Zion | Archive Field Propulsion Drive | -6/Zion | Archive Adv. Sensor Array | -6/Zion | Archive Lgt. Fission Core | -6/Zion | Archive Adv. Target Analyzer | -6/Zion | Archive Imp. Weapon Cycler | -6/Zion | Archive Imp. Hardlight Generator | -6/Zion | Archive Hvy. Gauss Cannon | -6/Zion | Archive Enh. Gauss Cannon | -6/Zion | Archive Stasis Canceller | -6/Zion | Archive Imp. Arc Projector | -6/Zion | Archive Adv. Terrain Scanner | -6/Zion | Archive Robot Schematics ------------------ R-10 Processor | -7/Data Miner | Free S-27 Virus | -7/Data Miner | Free H-55 Commando | -7/Data Miner | Free A-15 Conveyor | -7/Data Miner | Free E-15 Imp | -7/Data Miner | Free C-35 Carver | -7/Data Miner | Free R-06 Scavenger | -6/Zion | Archive H-88 Terminator | -6/Zion | Archive Fabricated ------------ Huge Storage Unit | x1 | -5/Factory | Authchip Combat Drone Bay | x1 | -5/Factory | Authchip Alien Tech Used ----------------- Core Expander Achievements -------------- What Is This Thing? Challenges ------------ None Game ------ Seed ControlSurgeSpiker Manual? 0 Play Time 04:46:22 Cumulative 172.1 hours Start 2024.10.12 @ 18:08:15 End 2024.10.13 @ 01:16:11 Sessions 3 Manual Loads 0 Difficulty Rogue Special Mode None Game No. 100 Rogue 87 Adventurer 13 Explorer 0 Win Type - Total 3 Types 3/0/0/0/0/0/0/0/0 Lore% 52 Gallery% 68 Achievement% 57 Wizard Run 0 Options --------- Layout 2 ASCII 0 Keyboard 1 Movement Numpad Keybinds 0 Fullscreen 2 Font 16/Swanston Map View 55x47 Zoom Use 0% Tactical HUD 1 Map Filters NONE Filters NONE Steam 0 RUN: 16588cc5-5b47-485b-b34f-166eb290fe5c